fUST/lending_fUST_20250716
["ID","MTS","AMOUNT","RATE_DAILY","PERIOD"]
[372454071,1752649841359,-460.0,0.00019999,2]
[372454072,1752649841368,-460.0,0.00019999,2]
[372454073,1752649841378,-579.7592567,0.00019999,2]
[372454075,1752649841387,-460.0,0.00019999,2]
[372454077,1752649841397,-460.0,0.00019999,2]
[372454079,1752649841406,-415.54,0.00019999,2]
[372454081,1752649841415,-460.0,0.00019999,2]
[372454083,1752649841424,-1251.13,0.00019999,2]
[372454085,1752649841433,-460.0,0.00019999,2]
[372454087,1752649841442,-460.0,0.00019999,2]
[372454089,1752649841452,-558.55,0.00019999,2]
[372454091,1752649841461,-460.0,0.00019999,2]
[372454093,1752649841471,-460.0,0.00019999,2]
[372454095,1752649841483,-460.0,0.00019999,2]
[372454097,1752649841492,-460.0,0.00019999,2]
[372454099,1752649841502,-460.0,0.00019999,2]
[372454101,1752649841512,-344.57,0.00019999,2]
[372454103,1752649841522,-460.0,0.00019999,2]
[372454105,1752649841531,-460.0,0.00019999,2]
[372454107,1752649841541,-460.0,0.00019999,2]
[372454109,1752649841551,-559.02,0.00019999,2]
[372454111,1752649841563,-460.0,0.00019999,2]
[372454113,1752649841574,-460.0,0.00019999,2]
[372454115,1752649841584,-460.0,0.00019999,2]
[372454117,1752649841593,-460.0,0.00019999,2]
[372454119,1752649841603,-460.0,0.00019999,2]
[372454121,1752649841613,-387.1468854,0.00019999,2]
[372454123,1752649841623,-460.0,0.00019999,2]
[372454125,1752649841632,-460.0,0.00019999,2]
[372454127,1752649841642,-1850.31,0.00019999,2]
[372454129,1752649841651,-460.0,0.00019999,2]
[372454131,1752649841660,-460.0,0.00019999,2]
[372454133,1752649841670,-460.0,0.00019999,2]
[372454135,1752649841679,-460.0,0.00019999,2]
[372454137,1752649841688,-408.33913571,0.0002,5]
[372454139,1752649841697,-151.0,0.0002,2]
[372454141,1752649841707,-460.0,0.0002,2]
[372454143,1752649841716,-460.0,0.0002,2]
[372454145,1752649841725,-460.0,0.0002,2]
[372454147,1752649841735,-604.05,0.0002,2]
[372454148,1752649841744,-515.28,0.0002,2]
[372454150,1752649841754,-460.0,0.0002,2]
[372454152,1752649841763,-329.16,0.0002,2]
[372454154,1752649841772,-544.0961383,0.0002,2]
[372454156,1752649841782,-460.0,0.0002,2]
[372454158,1752649841791,-460.0,0.0002,2]
[372454160,1752649841801,-462.35371516,0.0002,2]
[372454163,1752649841811,-460.0,0.0002,2]
[372454165,1752649841821,-461.72965024,0.0002,2]
[372454167,1752649841831,-460.0,0.0002,2]
[372454168,1752649841840,-330.6438691,0.0002,2]
[372454171,1752649841850,-460.0,0.0002,2]
[372454172,1752649841859,-460.0,0.0002,2]
[372454174,1752649841869,-460.0,0.0002,2]
[372454176,1752649841879,-460.0,0.0002,2]
[372454178,1752649841888,-460.0,0.0002,2]
[372454180,1752649841899,-460.0,0.0002,2]
[372454182,1752649841913,-460.0,0.0002,2]
[372454184,1752649841922,-460.0,0.0002,2]
[372454186,1752649841931,-460.0,0.0002,2]
[372454188,1752649841940,-460.0,0.0002,2]
[372454190,1752649841949,-464.18965921,0.0002,2]
[372454192,1752649841960,-460.0,0.0002,2]
[372454194,1752649841970,-460.0,0.0002,2]
[372454196,1752649841980,-460.0,0.0002,2]
[372454198,1752649841990,-460.0,0.0002,2]
[372454208,1752649842077,-460.0,0.0002,2]
[372454210,1752649842087,-460.0,0.0002,2]
[372454212,1752649842096,-335.69241285,0.0002,2]
[372454214,1752649842106,-2352.23,0.0002,2]
[372454216,1752649842115,-460.0,0.0002,2]
[372454218,1752649842124,-523.4,0.0002,2]
[372454220,1752649842134,-460.0,0.0002,2]
[372454222,1752649842144,-897.88,0.0002,2]
[372454224,1752649842153,-460.0,0.0002,2]
[372454226,1752649842163,-5307.85,0.0002,2]
[372454228,1752649842172,-714.49,0.0002,2]
[372454230,1752649842182,-460.0,0.0002,2]
[372454232,1752649842191,-460.0,0.0002,2]
[372454234,1752649842200,-460.0,0.0002,2]
[372454236,1752649842209,-460.0,0.0002,2]
[372454238,1752649842219,-460.0,0.0002,2]
[372454240,1752649842228,-1165.09,0.0002,2]
[372454242,1752649842237,-672.9,0.0002,2]
[372454244,1752649842247,-266.69,0.0002,2]
[372454246,1752649842256,-292.19,0.0002,2]
[372454247,1752649842265,-460.0,0.0002,2]
[372454249,1752649842275,-460.0,0.0002,2]
[372454251,1752649842284,-311.6725454,0.0002,2]
[372454253,1752649842294,-4471.4,0.0002,2]
[372454255,1752649842303,-460.0,0.0002,2]
[372454257,1752649842312,-460.0,0.0002,2]
[372454259,1752649842322,-2349.96,0.0002,2]
[372454261,1752649842331,-2177.46,0.0002,2]
[372454263,1752649842341,-460.0,0.0002,2]
[372454265,1752649842350,-151.0,0.0002,4]
[372454267,1752649842360,-460.0,0.0002,2]
[372454269,1752649842370,-460.0,0.0002,2]
[372454271,1752649842379,-489.53520121,0.0002,2]
[372454273,1752649842388,-1787.2,0.0002,2]
[372454275,1752649842398,-311.8772773,0.0002,2]
[372454277,1752649842407,-1733.72,0.0002,2]
[372454279,1752649842417,-4038.67,0.0002,2]
[372454281,1752649842426,-460.0,0.0002,2]
[372454283,1752649842435,-1334.91,0.0002,2]
[372454285,1752649842444,-460.0,0.0002,2]
[372454287,1752649842454,-460.0,0.0002,2]
[372454289,1752649842464,-460.0,0.0002,2]
[372454291,1752649842476,-460.0,0.0002,2]
[372454295,1752649842486,-460.0,0.0002,2]
[372454297,1752649842495,-460.0,0.0002,2]
[372454299,1752649842505,-541.5,0.0002,2]
[372454302,1752649842515,-460.0,0.0002,2]
[372454305,1752649842524,-460.0,0.0002,2]
[372454308,1752649842534,-334.7653306,0.00020008,2]
[372454312,1752649842544,-1000.0,0.00020021,2]
[372454315,1752649842554,-500.0,0.0002013,2]
[372454317,1752649842564,-300.67506845,0.00020176,2]
[372454319,1752649842573,-211.84188336,0.00020185,2]
[372454321,1752649842582,-422.659016,0.00020187,2]
[372454323,1752649842591,-348.0,0.00020245,2]
[372454325,1752649842601,-500.0,0.00020272,2]
[372454328,1752649842610,-460.0,0.00020273,2]
[372454329,1752649842620,-460.0,0.00020273,2]
[372454331,1752649842629,-386.95,0.00020273,2]
[372454333,1752649842638,-460.0,0.00020273,2]
[372454335,1752649842648,-460.0,0.00020273,2]
[372454337,1752649842657,-163.74326086,0.00020273,2]
[372454339,1752649842666,-460.0,0.00020273,2]
[372454341,1752649842675,-460.0,0.00020273,2]
[372454343,1752649842685,-460.0,0.00020273,2]
[372454345,1752649842696,-460.0,0.00020273,2]
[372454347,1752649842706,-460.0,0.00020273,2]
[372454349,1752649842716,-526.89532737,0.00020273,2]
[372454351,1752649842734,-460.0,0.00020273,2]
[372454353,1752649842744,-460.0,0.00020273,2]
[372454355,1752649842754,-460.0,0.00020273,2]
[372454357,1752649842763,-460.0,0.00020273,2]
[372454359,1752649842773,-460.0,0.00020273,2]
[372454361,1752649842782,-460.0,0.00020273,2]
[372454363,1752649842791,-586.73547133,0.00020273,2]
[372454365,1752649842801,-460.0,0.00020273,2]
[372454367,1752649842811,-460.0,0.00020273,2]
[372454369,1752649842820,-460.0,0.00020273,2]
[372454371,1752649842830,-1251.13,0.00020273,2]
[372454373,1752649842839,-333.12660642,0.00020273,2]
[372454375,1752649842849,-460.0,0.00020273,2]
[372454377,1752649842858,-558.55,0.00020273,2]
[372454379,1752649842867,-460.0,0.00020273,2]
[372454381,1752649842876,-460.0,0.00020273,2]
[372454383,1752649842885,-460.0,0.00020273,2]
[372454385,1752649842895,-460.0,0.00020273,2]
[372454387,1752649842904,-460.0,0.00020273,2]
[372454389,1752649842914,-153.52,0.00020273,2]
[372454391,1752649842924,-460.0,0.00020273,2]
[372454393,1752649842933,-460.0,0.00020273,2]
[372454395,1752649842943,-460.0,0.00020273,2]
[372454397,1752649842952,-460.0,0.00020273,2]
[372454399,1752649842962,-2352.23,0.00020273,2]
[372454401,1752649842972,-460.0,0.00020273,2]
[372454403,1752649842982,-523.4,0.00020273,2]
[372454405,1752649842991,-460.0,0.00020273,2]
[372454408,1752649843002,-460.0,0.00020273,2]
[372454411,1752649843013,-897.88,0.00020273,2]
[372454414,1752649843022,-460.0,0.00020273,2]
[372454417,1752649843031,-5307.85,0.00020273,2]
[372454420,1752649843041,-460.0,0.00020273,2]
[372454423,1752649843050,-714.49,0.00020273,2]
[372454425,1752649843060,-559.02,0.00020273,2]
[372454427,1752649843070,-460.65110988,0.00020273,2]
[372454429,1752649843079,-460.0,0.00020273,2]
[372454431,1752649843089,-460.0,0.00020273,2]
[372454433,1752649843099,-460.0,0.00020273,2]
[372454435,1752649843108,-460.0,0.00020273,2]
[372454437,1752649843118,-460.0,0.00020273,2]
[372454439,1752649843129,-1165.09,0.00020273,2]
[372454441,1752649843150,-460.0,0.00020273,2]
[372454443,1752649843160,-672.9,0.00020273,2]
[372454445,1752649843169,-460.0,0.00020273,2]
[372454447,1752649843179,-460.0,0.00020273,2]
[372454449,1752649843189,-4471.4,0.00020273,2]
[372454451,1752649843198,-460.0,0.00020273,2]
[372454453,1752649843208,-460.0,0.00020273,2]
[372454456,1752649843218,-460.0,0.00020273,2]
[372454457,1752649843228,-2349.96,0.00020273,2]
[372454460,1752649843238,-460.0,0.00020273,2]
[372454462,1752649843250,-2177.46,0.00020273,2]
[372454463,1752649843259,-460.0,0.00020273,2]
[372454465,1752649843270,-460.0,0.00020273,2]
[372454467,1752649843279,-1787.2,0.00020273,2]
[372454469,1752649843287,-1733.72,0.00020273,2]
[372454471,1752649843296,-4038.67,0.00020273,2]
[372454473,1752649843305,-460.0,0.00020273,2]
[372454475,1752649843315,-1334.91,0.00020273,2]
[372454477,1752649843324,-460.0,0.00020273,2]
[372454479,1752649843334,-460.0,0.00020273,2]
[372454481,1752649843343,-460.0,0.00020273,2]
[372454483,1752649843353,-460.0,0.00020273,2]
[372454485,1752649843362,-460.0,0.00020273,2]
[372454487,1752649843372,-158.42,0.00020273,2]
[372454489,1752649843381,-460.0,0.00020273,2]
[372454491,1752649843390,-1850.31,0.00020273,2]
[372454493,1752649843401,-460.0,0.00020273,2]
[372454495,1752649843416,-460.0,0.00020273,2]
[372454497,1752649843425,-541.5,0.00020273,2]
[372454499,1752649843435,-460.0,0.00020273,2]
[372454501,1752649843444,-460.0,0.00020273,2]
[372454503,1752649843454,-460.0,0.00020273,2]
[372454505,1752649843463,-151.0,0.000203,3]
[372454507,1752649843474,-1000.0,0.00020321,2]
[372454509,1752649843485,-151.0,0.000204,4]
[372454511,1752649843494,-428.0,0.00020431,2]
[372454513,1752649843504,-500.0,0.00020446,2]
[372454515,1752649843514,-214.40824756,0.00020484,2]
[372454517,1752649843523,-160.0,0.00020484,2]
[372454519,1752649843533,-160.0,0.00020484,2]
[372454521,1752649843543,-838.99048831,0.00020484,2]
[372454523,1752649843555,-230.8109288,0.00020484,2]
[372454532,1752649843638,-160.0,0.00020484,2]
[372454534,1752649843648,-215.5496034,0.00020484,2]
[372454536,1752649843658,-160.0,0.00020484,2]
[372454538,1752649843668,-12605.49131908,0.00020484,2]
[372454540,1752649843678,-468.75,0.00020484,2]
[372454542,1752649843687,-160.0,0.00020484,2]
[372454544,1752649843697,-160.0,0.00020484,2]
[372454546,1752649843706,-160.0,0.00020484,2]
[372454548,1752649843715,-160.0,0.00020484,2]
[372454550,1752649843725,-520.85416667,0.00020484,2]
[372454552,1752649843734,-160.0,0.00020484,2]
[372454554,1752649843744,-151.0,0.000205,4]
[372454556,1752649843754,-151.0,0.000205,3]
[372454558,1752649843763,-260.0,0.00020524,2]
[372454559,1752649843772,-500.0,0.00020546,2]
[372454560,1752649843782,-339.99,0.00020547,2]
[372454561,1752649843791,-460.0,0.00020547,2]
[372454562,1752649843801,-460.0,0.00020547,2]
[372454563,1752649843812,-460.0,0.00020547,2]
[372454564,1752649843821,-460.0,0.00020547,2]
[372454565,1752649843831,-460.0,0.00020547,2]
[372454566,1752649843840,-460.0,0.00020547,2]
[372454567,1752649843850,-460.0,0.00020547,2]
[372454568,1752649843860,-460.0,0.00020547,2]
[372454570,1752649843869,-460.0,0.00020547,2]
[372454572,1752649843879,-292.6,0.00020547,2]
[372454574,1752649843889,-460.0,0.00020547,2]
[372454576,1752649843898,-460.0,0.00020547,2]
[372454578,1752649843907,-460.0,0.00020547,2]
[372454580,1752649843917,-1251.13,0.00020547,2]
[372454582,1752649843926,-460.0,0.00020547,2]
[372454584,1752649843936,-558.55,0.00020547,2]
[372454586,1752649843945,-460.0,0.00020547,2]
[372454588,1752649843955,-327.33,0.00020547,2]
[372454590,1752649843964,-460.0,0.00020547,2]
[372454592,1752649843974,-460.0,0.00020547,2]
[372454594,1752649843984,-460.0,0.00020547,2]
[372454596,1752649843993,-460.0,0.00020547,2]
[372454598,1752649844004,-460.0,0.00020547,2]
[372454600,1752649844015,-460.0,0.00020547,2]
[372454602,1752649844025,-2352.23,0.00020547,2]
[372454604,1752649844034,-460.0,0.00020547,2]
[372454606,1752649844044,-523.4,0.00020547,2]
[372454608,1752649844053,-460.0,0.00020547,2]
[372454610,1752649844062,-188.05,0.00020547,2]
[372454612,1752649844072,-897.88,0.00020547,2]
[372454614,1752649844081,-460.0,0.00020547,2]
[372454616,1752649844091,-5307.85,0.00020547,2]
[372454618,1752649844100,-460.0,0.00020547,2]
[372454620,1752649844110,-714.49,0.00020547,2]
[372454622,1752649844119,-559.02,0.00020547,2]
[372454624,1752649844128,-460.0,0.00020547,2]
[372454626,1752649844137,-460.0,0.00020547,2]
[372454628,1752649844147,-460.0,0.00020547,2]
[372454630,1752649844156,-1165.09,0.00020547,2]
[372454632,1752649844165,-541.82,0.00020547,2]
[372454634,1752649844175,-672.9,0.00020547,2]
[372454636,1752649844185,-460.0,0.00020547,2]
[372454638,1752649844194,-460.0,0.00020547,2]
[372454640,1752649844204,-4471.4,0.00020547,2]
[372454642,1752649844214,-460.0,0.00020547,2]
[372454644,1752649844224,-460.0,0.00020547,2]
[372454646,1752649844234,-2349.96,0.00020547,2]
[372454648,1752649844244,-460.0,0.00020547,2]
[372454650,1752649844254,-2177.46,0.00020547,2]
[372454652,1752649844264,-460.0,0.00020547,2]
[372454654,1752649844274,-460.0,0.00020547,2]
[372454656,1752649844283,-1787.2,0.00020547,2]
[372454658,1752649844293,-1733.72,0.00020547,2]
[372454660,1752649844303,-4038.67,0.00020547,2]
[372454662,1752649844313,-460.0,0.00020547,2]
[372454664,1752649844323,-1334.91,0.00020547,2]
[372454666,1752649844334,-460.0,0.00020547,2]
[372454668,1752649844344,-460.0,0.00020547,2]
[372454670,1752649844354,-460.0,0.00020547,2]
[372454672,1752649844363,-460.0,0.00020547,2]
[372454674,1752649844373,-460.0,0.00020547,2]
[372454676,1752649844382,-460.0,0.00020547,2]
[372454678,1752649844391,-1850.31,0.00020547,2]
[372454680,1752649844401,-460.0,0.00020547,2]
[372454682,1752649844411,-316.4811283,0.00020547,2]
[372454684,1752649844422,-541.5,0.00020547,2]
[372454686,1752649844432,-354.3329802,0.00020547,2]
[372454688,1752649844441,-460.0,0.00020547,2]
[372454691,1752649844451,-460.0,0.00020547,2]
[372454692,1752649844461,-160.0,0.00020553,2]
[372454694,1752649844471,-524.40790772,0.00020568,2]
[372454697,1752649844484,-500.0,0.00020611,2]
[372454699,1752649844493,-4032.19313978,0.00020694,2]
[372454701,1752649844504,-151.0,0.000207,3]
[372454703,1752649844514,-151.0,0.000207,3]
[372454705,1752649844526,-214.40824756,0.00020721,3]
[372454707,1752649844536,-160.0,0.00020721,3]
[372454709,1752649844546,-12605.49131908,0.00020721,3]
[372454711,1752649844558,-160.0,0.00020721,3]
[372454713,1752649844568,-3209.66365448,0.00020754,2]
[372454715,1752649844578,-977.31,0.000208,2]
[372454717,1752649844587,-1891.48,0.00020811,3]
[372454718,1752649844596,-945.74,0.00020811,3]
[372454721,1752649844606,-472.88,0.00020811,3]
[372454723,1752649844618,-500.0,0.0002082,2]
[372454724,1752649844627,-460.0,0.00020821,2]
[372454726,1752649844636,-460.0,0.00020821,2]
[372454728,1752649844646,-521.13541408,0.00020821,2]
[372454730,1752649844655,-460.0,0.00020821,2]
[372454732,1752649844665,-460.0,0.00020821,2]
[372454734,1752649844674,-460.0,0.00020821,2]
[372454736,1752649844684,-460.0,0.00020821,2]
[372454738,1752649844693,-460.0,0.00020821,2]
[372454740,1752649844703,-460.0,0.00020821,2]
[372454742,1752649844712,-460.0,0.00020821,2]
[372454744,1752649844721,-1251.13,0.00020821,2]
[372454746,1752649844731,-460.0,0.00020821,2]
[372454748,1752649844740,-558.55,0.00020821,2]
[372454750,1752649844752,-460.0,0.00020821,2]
[372454752,1752649844766,-563.38158383,0.00020821,2]
[372454755,1752649844775,-460.0,0.00020821,2]
[372454756,1752649844785,-460.0,0.00020821,2]
[372454758,1752649844795,-460.0,0.00020821,2]
[372454760,1752649844804,-460.0,0.00020821,2]
[372454762,1752649844813,-2352.23,0.00020821,2]
[372454764,1752649844823,-460.0,0.00020821,2]
[372454767,1752649844833,-523.4,0.00020821,2]
[372454769,1752649844843,-540.52492912,0.00020821,2]
[372454771,1752649844852,-897.88,0.00020821,2]
[372454773,1752649844861,-460.0,0.00020821,2]
[372454775,1752649844871,-5307.85,0.00020821,2]
[372454776,1752649844880,-460.0,0.00020821,2]
[372454778,1752649844890,-714.49,0.00020821,2]
[372454781,1752649844899,-559.02,0.00020821,2]
[372454783,1752649844908,-460.0,0.00020821,2]
[372454785,1752649844918,-460.0,0.00020821,2]
[372454787,1752649844928,-460.0,0.00020821,2]
[372454789,1752649844938,-1165.09,0.00020821,2]
[372454790,1752649844947,-672.9,0.00020821,2]
[372454793,1752649844957,-460.0,0.00020821,2]
[372454794,1752649844967,-460.0,0.00020821,2]
[372454797,1752649844977,-4471.4,0.00020821,2]
[372454799,1752649844986,-460.0,0.00020821,2]
[372454800,1752649844996,-466.64526891,0.00020821,2]
[372454810,1752649845074,-2349.96,0.00020821,2]
[372454812,1752649845084,-460.0,0.00020821,2]
[372454814,1752649845093,-2177.46,0.00020821,2]
[372454816,1752649845102,-460.0,0.00020821,2]
[372454818,1752649845112,-460.0,0.00020821,2]
[372454820,1752649845121,-1787.2,0.00020821,2]
[372454822,1752649845130,-1733.72,0.00020821,2]
[372454824,1752649845139,-4038.67,0.00020821,2]
[372454826,1752649845149,-468.19043524,0.00020821,2]
[372454828,1752649845159,-1334.91,0.00020821,2]
[372454830,1752649845168,-460.0,0.00020821,2]
[372454832,1752649845178,-460.0,0.00020821,2]
[372454834,1752649845187,-460.0,0.00020821,2]
[372454836,1752649845196,-460.0,0.00020821,2]
[372454838,1752649845206,-460.0,0.00020821,2]
[372454840,1752649845216,-1850.31,0.00020821,2]
[372454842,1752649845225,-460.0,0.00020821,2]
[372454844,1752649845235,-541.5,0.00020821,2]
[372454846,1752649845244,-335.54956013,0.00020821,2]
[372454848,1752649845254,-460.0,0.00020821,2]
[372454850,1752649845263,-1500.0,0.00020868,2]
[372454852,1752649845273,-1680.0,0.00020899,2]
[372454854,1752649845284,-420.0,0.00020899,2]
[372454856,1752649845294,-376.0,0.00020899,2]
[372454858,1752649845309,-420.0,0.00020899,2]
[372454861,1752649845326,-420.0,0.00020899,2]
[372454864,1752649845337,-151.0,0.000209,4]
[372454866,1752649845347,-151.0,0.00021,3]
[372454868,1752649845356,-151.0,0.00021,4]
[372454871,1752649845366,-151.039628,0.00021,15]
[372454873,1752649845375,-1680.0,0.00021,2]
[372454875,1752649845384,-325.075,0.00021017,2]
[372454877,1752649845394,-178.3908234,0.00021017,2]
[372454879,1752649845403,-500.0,0.00021042,2]
[372454882,1752649845413,-360.0,0.00021072,2]
[372454885,1752649845422,-3209.66365448,0.00021073,2]
[372454888,1752649845432,-500.0,0.00021094,2]
[372454891,1752649845441,-460.0,0.00021095,2]
[372454893,1752649845450,-460.0,0.00021095,2]
[372454896,1752649845460,-460.0,0.00021095,2]
[372454899,1752649845470,-460.0,0.00021095,2]
[372454901,1752649845484,-460.0,0.00021095,2]
[372454903,1752649845496,-460.0,0.00021095,2]
[372454905,1752649845506,-460.0,0.00021095,2]
[372454907,1752649845516,-460.0,0.00021095,2]
[372454909,1752649845527,-460.0,0.00021095,2]
[372454911,1752649845536,-1251.13,0.00021095,2]
[372454913,1752649845546,-460.0,0.00021095,2]
[372454915,1752649845556,-558.55,0.00021095,2]
[372454917,1752649845566,-150.69,0.00021095,2]
[372454919,1752649845575,-471.47,0.00021095,2]
[372454921,1752649845585,-460.0,0.00021095,2]
[372454923,1752649845594,-460.0,0.00021095,2]
[372454925,1752649845604,-460.0,0.00021095,2]
[372454927,1752649845613,-2352.23,0.00021095,2]
[372454929,1752649845623,-460.0,0.00021095,2]
[372454931,1752649845632,-523.4,0.00021095,2]
[372454933,1752649845643,-897.88,0.00021095,2]
[372454935,1752649845652,-460.0,0.00021095,2]
[372454938,1752649845662,-5307.85,0.00021095,2]
[372454940,1752649845672,-460.0,0.00021095,2]
[372454943,1752649845682,-714.49,0.00021095,2]
[372454945,1752649845691,-559.02,0.00021095,2]
[372454947,1752649845700,-460.0,0.00021095,2]
[372454949,1752649845710,-460.0,0.00021095,2]
[372454951,1752649845720,-460.0,0.00021095,2]
[372454953,1752649845729,-1165.09,0.00021095,2]
[372454955,1752649845739,-672.9,0.00021095,2]
[372454957,1752649845749,-460.0,0.00021095,2]
[372454959,1752649845759,-460.0,0.00021095,2]
[372454960,1752649845769,-4471.4,0.00021095,2]
[372454962,1752649845779,-460.0,0.00021095,2]
[372454964,1752649845789,-2349.96,0.00021095,2]
[372454966,1752649845799,-460.0,0.00021095,2]
[372454969,1752649845809,-460.0,0.00021095,2]
[372454970,1752649845819,-2177.46,0.00021095,2]
[372454972,1752649845829,-561.15,0.00021095,2]
[372454975,1752649845839,-1787.2,0.00021095,2]
[372454976,1752649845849,-1733.72,0.00021095,2]
[372454978,1752649845859,-4038.67,0.00021095,2]
[372454980,1752649845868,-1334.91,0.00021095,2]
[372454982,1752649845878,-460.0,0.00021095,2]
[372454984,1752649845887,-460.0,0.00021095,2]
[372454987,1752649845897,-460.0,0.00021095,2]
[372454989,1752649845907,-460.0,0.00021095,2]
[372454990,1752649845916,-460.0,0.00021095,2]
[372454992,1752649845925,-1850.31,0.00021095,2]
[372454995,1752649845936,-460.0,0.00021095,2]
[372454996,1752649845945,-541.5,0.00021095,2]
[372454999,1752649845955,-460.0,0.00021095,2]
[372455001,1752649845965,-3209.66365448,0.00021169,2]
[372455002,1752649845975,-151.0,0.000212,3]
[372455005,1752649845984,-24449.37,0.000213,2]
[372455006,1752649845994,-151.0,0.000213,3]
[372455009,1752649846005,-500.0,0.00021368,2]
[372455010,1752649846015,-256.5313231,0.00021369,2]
[372455013,1752649846026,-460.0,0.00021369,2]
[372455014,1752649846035,-460.0,0.00021369,2]
[372455016,1752649846045,-460.0,0.00021369,2]
[372455019,1752649846055,-460.0,0.00021369,2]
[372455020,1752649846064,-460.0,0.00021369,2]
[372455022,1752649846073,-1251.13,0.00021369,2]
[372455024,1752649846083,-460.0,0.00021369,2]
[372455026,1752649846092,-558.55,0.00021369,2]
[372455029,1752649846102,-460.0,0.00021369,2]
[372455030,1752649846111,-460.0,0.00021369,2]
[372455033,1752649846121,-460.0,0.00021369,2]
[372455035,1752649846130,-2352.23,0.00021369,2]
[372455036,1752649846140,-502.81,0.00021369,2]
[372455039,1752649846150,-523.4,0.00021369,2]
[372455041,1752649846160,-897.88,0.00021369,2]
[372455042,1752649846169,-460.0,0.00021369,2]
[372455044,1752649846179,-5307.85,0.00021369,2]
[372455046,1752649846188,-460.0,0.00021369,2]
[372455048,1752649846198,-714.49,0.00021369,2]
[372455050,1752649846208,-559.02,0.00021369,2]
[372455052,1752649846217,-460.0,0.00021369,2]
[372455054,1752649846227,-460.0,0.00021369,2]
[372455056,1752649846236,-1165.09,0.00021369,2]
[372455059,1752649846246,-672.9,0.00021369,2]
[372455060,1752649846257,-460.0,0.00021369,2]
[372455063,1752649846268,-4471.4,0.00021369,2]
[372455065,1752649846277,-2349.96,0.00021369,2]
[372455067,1752649846287,-460.0,0.00021369,2]
[372455069,1752649846297,-2177.46,0.00021369,2]
[372455071,1752649846307,-1787.2,0.00021369,2]
[372455073,1752649846316,-1733.72,0.00021369,2]
[372455075,1752649846326,-4038.67,0.00021369,2]
[372455083,1752649846396,-1334.91,0.00021369,2]
[372455086,1752649846410,-460.0,0.00021369,2]
[372455087,1752649846420,-460.0,0.00021369,2]
[372455089,1752649846430,-460.0,0.00021369,2]
[372455092,1752649846440,-460.0,0.00021369,2]
[372455094,1752649846449,-460.0,0.00021369,2]
[372455096,1752649846459,-1850.31,0.00021369,2]
[372455098,1752649846468,-460.0,0.00021369,2]
[372455100,1752649846482,-541.5,0.00021369,2]
[372455102,1752649846491,-568.04821469,0.00021369,2]
[372455104,1752649846501,-3209.66365448,0.00021388,2]
[372455105,1752649846511,-151.0,0.000214,3]
[372455107,1752649846521,-151.0,0.000214,3]
[372455109,1752649846530,-2024.69984856,0.00021416,2]